{"text_format":"3","workbook":"xlsx","n_sheets":2,"sheets":["KASVUANDMED","KASVUDIAGRAMM"],"not_rendered":{"charts":1,"defined_names":3},"read":"whole","date_system":"1900"}

{"sheet":"KASVUANDMED","index":0,"n_rows":23,"n_cols":8,"rows_kept":23,"merged":[[0,1,0,7],[1,2,1,7]]}
[null,"Vastsündinu kasvamine "]
[null,"Lapse nimi:","Nimi"]
[null,"Vanus","Kilod","Grammid","Kaal (kg)","Kaalu\nprotsentiil","Pikkus (cm)","Pikkuse\nprotsentiil"]
[null,"Sünnihetkel",7,null,{"$f":"IF(COUNT(Andmed[[#This Row],[Kilod]:[Grammid]])>0,Andmed[[#This Row],[Kilod]]+(Andmed[[#This Row],[Grammid]]/16),NA())","v":7},40,19.5,70]
[null,"4 päeva",6,8,{"$f":"IF(COUNT(Andmed[[#This Row],[Kilod]:[Grammid]])>0,Andmed[[#This Row],[Kilod]]+(Andmed[[#This Row],[Grammid]]/16),NA())","v":6.5},41,19.5,70]
[null,"7 päeva",6,4.8,{"$f":"IF(COUNT(Andmed[[#This Row],[Kilod]:[Grammid]])>0,Andmed[[#This Row],[Kilod]]+(Andmed[[#This Row],[Grammid]]/16),NA())","v":6.3},42,20,71]
[null,"11 päeva",6,9.6,{"$f":"IF(COUNT(Andmed[[#This Row],[Kilod]:[Grammid]])>0,Andmed[[#This Row],[Kilod]]+(Andmed[[#This Row],[Grammid]]/16),NA())","v":6.6},43,20,71]
[null,"14 päeva",7,null,{"$f":"IF(COUNT(Andmed[[#This Row],[Kilod]:[Grammid]])>0,Andmed[[#This Row],[Kilod]]+(Andmed[[#This Row],[Grammid]]/16),NA())","v":7},44,20,71]
[null,"18 päeva",7,12,{"$f":"IF(COUNT(Andmed[[#This Row],[Kilod]:[Grammid]])>0,Andmed[[#This Row],[Kilod]]+(Andmed[[#This Row],[Grammid]]/16),NA())","v":7.75},45,21,72]
[null,"21 päeva",8,8,{"$f":"IF(COUNT(Andmed[[#This Row],[Kilod]:[Grammid]])>0,Andmed[[#This Row],[Kilod]]+(Andmed[[#This Row],[Grammid]]/16),NA())","v":8.5},46,21,72]
[null,"25 päeva",null,null,{"$f":"IF(COUNT(Andmed[[#This Row],[Kilod]:[Grammid]])>0,Andmed[[#This Row],[Kilod]]+(Andmed[[#This Row],[Grammid]]/16),NA())","v":{"$error":"#N/A"}}]
[null,"28 päeva",null,null,{"$f":"IF(COUNT(Andmed[[#This Row],[Kilod]:[Grammid]])>0,Andmed[[#This Row],[Kilod]]+(Andmed[[#This Row],[Grammid]]/16),NA())","v":{"$error":"#N/A"}}]
[null,"5 nädalat",null,null,{"$f":"IF(COUNT(Andmed[[#This Row],[Kilod]:[Grammid]])>0,Andmed[[#This Row],[Kilod]]+(Andmed[[#This Row],[Grammid]]/16),NA())","v":{"$error":"#N/A"}}]
[null,"6 nädalat",null,null,{"$f":"IF(COUNT(Andmed[[#This Row],[Kilod]:[Grammid]])>0,Andmed[[#This Row],[Kilod]]+(Andmed[[#This Row],[Grammid]]/16),NA())","v":{"$error":"#N/A"}}]
[null,"7 nädalat",null,null,{"$f":"IF(COUNT(Andmed[[#This Row],[Kilod]:[Grammid]])>0,Andmed[[#This Row],[Kilod]]+(Andmed[[#This Row],[Grammid]]/16),NA())","v":{"$error":"#N/A"}}]
[null,"2 kuud",null,null,{"$f":"IF(COUNT(Andmed[[#This Row],[Kilod]:[Grammid]])>0,Andmed[[#This Row],[Kilod]]+(Andmed[[#This Row],[Grammid]]/16),NA())","v":{"$error":"#N/A"}}]
[null,"3 kuud",null,null,{"$f":"IF(COUNT(Andmed[[#This Row],[Kilod]:[Grammid]])>0,Andmed[[#This Row],[Kilod]]+(Andmed[[#This Row],[Grammid]]/16),NA())","v":{"$error":"#N/A"}}]
[null,"6 kuud",null,null,{"$f":"IF(COUNT(Andmed[[#This Row],[Kilod]:[Grammid]])>0,Andmed[[#This Row],[Kilod]]+(Andmed[[#This Row],[Grammid]]/16),NA())","v":{"$error":"#N/A"}}]
[null,"9 kuud",null,null,{"$f":"IF(COUNT(Andmed[[#This Row],[Kilod]:[Grammid]])>0,Andmed[[#This Row],[Kilod]]+(Andmed[[#This Row],[Grammid]]/16),NA())","v":{"$error":"#N/A"}}]
[null,"12 kuud",null,null,{"$f":"IF(COUNT(Andmed[[#This Row],[Kilod]:[Grammid]])>0,Andmed[[#This Row],[Kilod]]+(Andmed[[#This Row],[Grammid]]/16),NA())","v":{"$error":"#N/A"}}]
[null,"18 kuud",null,null,{"$f":"IF(COUNT(Andmed[[#This Row],[Kilod]:[Grammid]])>0,Andmed[[#This Row],[Kilod]]+(Andmed[[#This Row],[Grammid]]/16),NA())","v":{"$error":"#N/A"}}]
[null,"24 kuud",null,null,{"$f":"IF(COUNT(Andmed[[#This Row],[Kilod]:[Grammid]])>0,Andmed[[#This Row],[Kilod]]+(Andmed[[#This Row],[Grammid]]/16),NA())","v":{"$error":"#N/A"}}]
[null,"36 kuud",null,null,{"$f":"IF(COUNT(Andmed[[#This Row],[Kilod]:[Grammid]])>0,Andmed[[#This Row],[Kilod]]+(Andmed[[#This Row],[Grammid]]/16),NA())","v":{"$error":"#N/A"}}]

{"sheet":"KASVUDIAGRAMM","index":1,"n_rows":1,"n_cols":2,"rows_kept":1,"merged":[[0,1,1,1]]}
[null,"BEEBI KASVUKÕVER"]